{"text_format":"3","workbook":"xlsx","n_sheets":3,"sheets":["Ütemterv","Adatbevitel","Név keresése"],"not_rendered":{"defined_names":5},"read":"whole","date_system":"1900"}

{"sheet":"Ütemterv","index":0,"n_rows":23,"n_cols":9,"rows_kept":23,"merged":[[1,1,2,3]]}
[]
[null,"NAPI ÜTEMTERV",{"$nulls":4},"Tárgyhét: ","Ütemterv tulajdonosa: "]
[{"$nulls":5},{"$f":"WEEKDAY(Hét,1)","v":3},"2012-07-03","Miklós"]
[null,null,{"$f":"$F$3=COLUMN(A$1)","v":false},{"$f":"$F$3=COLUMN(B$1)","v":false},true,false,false,false,false]
[null,null,{"$f":"COLUMN(A$1)-MATCH(TRUE,$C$4:$I$4,0)+Hét+1","v":"2012-07-02"},"2012-07-03","2012-07-04","2012-07-05","2012-07-06","2012-07-07","2012-07-08"]
[null,"IDŐPONT","HÉTFŐ","KEDD","SZERDA","CSÜTÖRTÖK","PÉNTEK","SZOMBAT","VASÁRNAP"]
[null,"06:00:00",{"$f":"IFERROR(INDEX(táblázatAdatok[],MATCH(C$5+$B7&NévMegjelenítése,táblázatAdatok[DÁTUM ÉS IDŐPONT]&táblázatAdatok[KI?],0),3),\"\")","v":""},{"$f":"IFERROR(INDEX(táblázatAdatok[],MATCH(D$5+$B7&NévMegjelenítése,táblázatAdatok[DÁTUM ÉS IDŐPONT]&táblázatAdatok[KI?],0),3),\"\")","v":""},{"$f":"IFERROR(INDEX(táblázatAdatok[],MATCH(E$5+$B7&NévMegjelenítése,táblázatAdatok[DÁTUM ÉS IDŐPONT]&táblázatAdatok[KI?],0),3),\"\")","v":""},{"$f":"IFERROR(INDEX(táblázatAdatok[],MATCH(F$5+$B7&NévMegjelenítése,táblázatAdatok[DÁTUM ÉS IDŐPONT]&táblázatAdatok[KI?],0),3),\"\")","v":""},{"$f":"IFERROR(INDEX(táblázatAdatok[],MATCH(G$5+$B7&NévMegjelenítése,táblázatAdatok[DÁTUM ÉS IDŐPONT]&táblázatAdatok[KI?],0),3),\"\")","v":""},{"$f":"IFERROR(INDEX(táblázatAdatok[],MATCH(H$5+$B7&NévMegjelenítése,táblázatAdatok[DÁTUM ÉS IDŐPONT]&táblázatAdatok[KI?],0),3),\"\")","v":""},{"$f":"IFERROR(INDEX(táblázatAdatok[],MATCH(I$5+$B7&NévMegjelenítése,táblázatAdatok[DÁTUM ÉS IDŐPONT]&táblázatAdatok[KI?],0),3),\"\")","v":""}]
[null,"07:00:00",{"$f":"IFERROR(INDEX(táblázatAdatok[],MATCH(C$5+$B8&NévMegjelenítése,táblázatAdatok[DÁTUM ÉS IDŐPONT]&táblázatAdatok[KI?],0),3),\"\")","v":""},{"$f":"IFERROR(INDEX(táblázatAdatok[],MATCH(D$5+$B8&NévMegjelenítése,táblázatAdatok[DÁTUM ÉS IDŐPONT]&táblázatAdatok[KI?],0),3),\"\")","v":""},{"$f":"IFERROR(INDEX(táblázatAdatok[],MATCH(E$5+$B8&NévMegjelenítése,táblázatAdatok[DÁTUM ÉS IDŐPONT]&táblázatAdatok[KI?],0),3),\"\")","v":""},{"$f":"IFERROR(INDEX(táblázatAdatok[],MATCH(F$5+$B8&NévMegjelenítése,táblázatAdatok[DÁTUM ÉS IDŐPONT]&táblázatAdatok[KI?],0),3),\"\")","v":""},{"$f":"IFERROR(INDEX(táblázatAdatok[],MATCH(G$5+$B8&NévMegjelenítése,táblázatAdatok[DÁTUM ÉS IDŐPONT]&táblázatAdatok[KI?],0),3),\"\")","v":""},{"$f":"IFERROR(INDEX(táblázatAdatok[],MATCH(H$5+$B8&NévMegjelenítése,táblázatAdatok[DÁTUM ÉS IDŐPONT]&táblázatAdatok[KI?],0),3),\"\")","v":""},{"$f":"IFERROR(INDEX(táblázatAdatok[],MATCH(I$5+$B8&NévMegjelenítése,táblázatAdatok[DÁTUM ÉS IDŐPONT]&táblázatAdatok[KI?],0),3),\"\")","v":""}]
[null,"08:00:00",{"$f":"IFERROR(INDEX(táblázatAdatok[],MATCH(C$5+$B9&NévMegjelenítése,táblázatAdatok[DÁTUM ÉS IDŐPONT]&táblázatAdatok[KI?],0),3),\"\")","v":""},{"$f":"IFERROR(INDEX(táblázatAdatok[],MATCH(D$5+$B9&NévMegjelenítése,táblázatAdatok[DÁTUM ÉS IDŐPONT]&táblázatAdatok[KI?],0),3),\"\")","v":""},{"$f":"IFERROR(INDEX(táblázatAdatok[],MATCH(E$5+$B9&NévMegjelenítése,táblázatAdatok[DÁTUM ÉS IDŐPONT]&táblázatAdatok[KI?],0),3),\"\")","v":""},{"$f":"IFERROR(INDEX(táblázatAdatok[],MATCH(F$5+$B9&NévMegjelenítése,táblázatAdatok[DÁTUM ÉS IDŐPONT]&táblázatAdatok[KI?],0),3),\"\")","v":""},{"$f":"IFERROR(INDEX(táblázatAdatok[],MATCH(G$5+$B9&NévMegjelenítése,táblázatAdatok[DÁTUM ÉS IDŐPONT]&táblázatAdatok[KI?],0),3),\"\")","v":""},{"$f":"IFERROR(INDEX(táblázatAdatok[],MATCH(H$5+$B9&NévMegjelenítése,táblázatAdatok[DÁTUM ÉS IDŐPONT]&táblázatAdatok[KI?],0),3),\"\")","v":""},{"$f":"IFERROR(INDEX(táblázatAdatok[],MATCH(I$5+$B9&NévMegjelenítése,táblázatAdatok[DÁTUM ÉS IDŐPONT]&táblázatAdatok[KI?],0),3),\"\")","v":""}]
[null,"09:00:00",{"$f":"IFERROR(INDEX(táblázatAdatok[],MATCH(C$5+$B10&NévMegjelenítése,táblázatAdatok[DÁTUM ÉS IDŐPONT]&táblázatAdatok[KI?],0),3),\"\")","v":""},{"$f":"IFERROR(INDEX(táblázatAdatok[],MATCH(D$5+$B10&NévMegjelenítése,táblázatAdatok[DÁTUM ÉS IDŐPONT]&táblázatAdatok[KI?],0),3),\"\")","v":""},{"$f":"IFERROR(INDEX(táblázatAdatok[],MATCH(E$5+$B10&NévMegjelenítése,táblázatAdatok[DÁTUM ÉS IDŐPONT]&táblázatAdatok[KI?],0),3),\"\")","v":""},{"$f":"IFERROR(INDEX(táblázatAdatok[],MATCH(F$5+$B10&NévMegjelenítése,táblázatAdatok[DÁTUM ÉS IDŐPONT]&táblázatAdatok[KI?],0),3),\"\")","v":""},{"$f":"IFERROR(INDEX(táblázatAdatok[],MATCH(G$5+$B10&NévMegjelenítése,táblázatAdatok[DÁTUM ÉS IDŐPONT]&táblázatAdatok[KI?],0),3),\"\")","v":""},{"$f":"IFERROR(INDEX(táblázatAdatok[],MATCH(H$5+$B10&NévMegjelenítése,táblázatAdatok[DÁTUM ÉS IDŐPONT]&táblázatAdatok[KI?],0),3),\"\")","v":""},{"$f":"IFERROR(INDEX(táblázatAdatok[],MATCH(I$5+$B10&NévMegjelenítése,táblázatAdatok[DÁTUM ÉS IDŐPONT]&táblázatAdatok[KI?],0),3),\"\")","v":""}]
[null,"10:00:00",{"$f":"IFERROR(INDEX(táblázatAdatok[],MATCH(C$5+$B11&NévMegjelenítése,táblázatAdatok[DÁTUM ÉS IDŐPONT]&táblázatAdatok[KI?],0),3),\"\")","v":""},{"$f":"IFERROR(INDEX(táblázatAdatok[],MATCH(D$5+$B11&NévMegjelenítése,táblázatAdatok[DÁTUM ÉS IDŐPONT]&táblázatAdatok[KI?],0),3),\"\")","v":""},{"$f":"IFERROR(INDEX(táblázatAdatok[],MATCH(E$5+$B11&NévMegjelenítése,táblázatAdatok[DÁTUM ÉS IDŐPONT]&táblázatAdatok[KI?],0),3),\"\")","v":"Felvonulás a belvárosban"},{"$f":"IFERROR(INDEX(táblázatAdatok[],MATCH(F$5+$B11&NévMegjelenítése,táblázatAdatok[DÁTUM ÉS IDŐPONT]&táblázatAdatok[KI?],0),3),\"\")","v":""},{"$f":"IFERROR(INDEX(táblázatAdatok[],MATCH(G$5+$B11&NévMegjelenítése,táblázatAdatok[DÁTUM ÉS IDŐPONT]&táblázatAdatok[KI?],0),3),\"\")","v":""},{"$f":"IFERROR(INDEX(táblázatAdatok[],MATCH(H$5+$B11&NévMegjelenítése,táblázatAdatok[DÁTUM ÉS IDŐPONT]&táblázatAdatok[KI?],0),3),\"\")","v":""},{"$f":"IFERROR(INDEX(táblázatAdatok[],MATCH(I$5+$B11&NévMegjelenítése,táblázatAdatok[DÁTUM ÉS IDŐPONT]&táblázatAdatok[KI?],0),3),\"\")","v":""}]
[null,"11:00:00",{"$f":"IFERROR(INDEX(táblázatAdatok[],MATCH(C$5+$B12&NévMegjelenítése,táblázatAdatok[DÁTUM ÉS IDŐPONT]&táblázatAdatok[KI?],0),3),\"\")","v":""},{"$f":"IFERROR(INDEX(táblázatAdatok[],MATCH(D$5+$B12&NévMegjelenítése,táblázatAdatok[DÁTUM ÉS IDŐPONT]&táblázatAdatok[KI?],0),3),\"\")","v":""},{"$f":"IFERROR(INDEX(táblázatAdatok[],MATCH(E$5+$B12&NévMegjelenítése,táblázatAdatok[DÁTUM ÉS IDŐPONT]&táblázatAdatok[KI?],0),3),\"\")","v":""},{"$f":"IFERROR(INDEX(táblázatAdatok[],MATCH(F$5+$B12&NévMegjelenítése,táblázatAdatok[DÁTUM ÉS IDŐPONT]&táblázatAdatok[KI?],0),3),\"\")","v":""},{"$f":"IFERROR(INDEX(táblázatAdatok[],MATCH(G$5+$B12&NévMegjelenítése,táblázatAdatok[DÁTUM ÉS IDŐPONT]&táblázatAdatok[KI?],0),3),\"\")","v":"Családi szalonnasütés"},{"$f":"IFERROR(INDEX(táblázatAdatok[],MATCH(H$5+$B12&NévMegjelenítése,táblázatAdatok[DÁTUM ÉS IDŐPONT]&táblázatAdatok[KI?],0),3),\"\")","v":""},{"$f":"IFERROR(INDEX(táblázatAdatok[],MATCH(I$5+$B12&NévMegjelenítése,táblázatAdatok[DÁTUM ÉS IDŐPONT]&táblázatAdatok[KI?],0),3),\"\")","v":""}]
[null,"12:00:00",{"$f":"IFERROR(INDEX(táblázatAdatok[],MATCH(C$5+$B13&NévMegjelenítése,táblázatAdatok[DÁTUM ÉS IDŐPONT]&táblázatAdatok[KI?],0),3),\"\")","v":""},{"$f":"IFERROR(INDEX(táblázatAdatok[],MATCH(D$5+$B13&NévMegjelenítése,táblázatAdatok[DÁTUM ÉS IDŐPONT]&táblázatAdatok[KI?],0),3),\"\")","v":""},{"$f":"IFERROR(INDEX(táblázatAdatok[],MATCH(E$5+$B13&NévMegjelenítése,táblázatAdatok[DÁTUM ÉS IDŐPONT]&táblázatAdatok[KI?],0),3),\"\")","v":""},{"$f":"IFERROR(INDEX(táblázatAdatok[],MATCH(F$5+$B13&NévMegjelenítése,táblázatAdatok[DÁTUM ÉS IDŐPONT]&táblázatAdatok[KI?],0),3),\"\")","v":""},{"$f":"IFERROR(INDEX(táblázatAdatok[],MATCH(G$5+$B13&NévMegjelenítése,táblázatAdatok[DÁTUM ÉS IDŐPONT]&táblázatAdatok[KI?],0),3),\"\")","v":""},{"$f":"IFERROR(INDEX(táblázatAdatok[],MATCH(H$5+$B13&NévMegjelenítése,táblázatAdatok[DÁTUM ÉS IDŐPONT]&táblázatAdatok[KI?],0),3),\"\")","v":""},{"$f":"IFERROR(INDEX(táblázatAdatok[],MATCH(I$5+$B13&NévMegjelenítése,táblázatAdatok[DÁTUM ÉS IDŐPONT]&táblázatAdatok[KI?],0),3),\"\")","v":""}]
[null,"13:00:00",{"$f":"IFERROR(INDEX(táblázatAdatok[],MATCH(C$5+$B14&NévMegjelenítése,táblázatAdatok[DÁTUM ÉS IDŐPONT]&táblázatAdatok[KI?],0),3),\"\")","v":""},{"$f":"IFERROR(INDEX(táblázatAdatok[],MATCH(D$5+$B14&NévMegjelenítése,táblázatAdatok[DÁTUM ÉS IDŐPONT]&táblázatAdatok[KI?],0),3),\"\")","v":""},{"$f":"IFERROR(INDEX(táblázatAdatok[],MATCH(E$5+$B14&NévMegjelenítése,táblázatAdatok[DÁTUM ÉS IDŐPONT]&táblázatAdatok[KI?],0),3),\"\")","v":""},{"$f":"IFERROR(INDEX(táblázatAdatok[],MATCH(F$5+$B14&NévMegjelenítése,táblázatAdatok[DÁTUM ÉS IDŐPONT]&táblázatAdatok[KI?],0),3),\"\")","v":""},{"$f":"IFERROR(INDEX(táblázatAdatok[],MATCH(G$5+$B14&NévMegjelenítése,táblázatAdatok[DÁTUM ÉS IDŐPONT]&táblázatAdatok[KI?],0),3),\"\")","v":""},{"$f":"IFERROR(INDEX(táblázatAdatok[],MATCH(H$5+$B14&NévMegjelenítése,táblázatAdatok[DÁTUM ÉS IDŐPONT]&táblázatAdatok[KI?],0),3),\"\")","v":""},{"$f":"IFERROR(INDEX(táblázatAdatok[],MATCH(I$5+$B14&NévMegjelenítése,táblázatAdatok[DÁTUM ÉS IDŐPONT]&táblázatAdatok[KI?],0),3),\"\")","v":""}]
[null,"14:00:00",{"$f":"IFERROR(INDEX(táblázatAdatok[],MATCH(C$5+$B15&NévMegjelenítése,táblázatAdatok[DÁTUM ÉS IDŐPONT]&táblázatAdatok[KI?],0),3),\"\")","v":""},{"$f":"IFERROR(INDEX(táblázatAdatok[],MATCH(D$5+$B15&NévMegjelenítése,táblázatAdatok[DÁTUM ÉS IDŐPONT]&táblázatAdatok[KI?],0),3),\"\")","v":""},{"$f":"IFERROR(INDEX(táblázatAdatok[],MATCH(E$5+$B15&NévMegjelenítése,táblázatAdatok[DÁTUM ÉS IDŐPONT]&táblázatAdatok[KI?],0),3),\"\")","v":""},{"$f":"IFERROR(INDEX(táblázatAdatok[],MATCH(F$5+$B15&NévMegjelenítése,táblázatAdatok[DÁTUM ÉS IDŐPONT]&táblázatAdatok[KI?],0),3),\"\")","v":""},{"$f":"IFERROR(INDEX(táblázatAdatok[],MATCH(G$5+$B15&NévMegjelenítése,táblázatAdatok[DÁTUM ÉS IDŐPONT]&táblázatAdatok[KI?],0),3),\"\")","v":""},{"$f":"IFERROR(INDEX(táblázatAdatok[],MATCH(H$5+$B15&NévMegjelenítése,táblázatAdatok[DÁTUM ÉS IDŐPONT]&táblázatAdatok[KI?],0),3),\"\")","v":""},{"$f":"IFERROR(INDEX(táblázatAdatok[],MATCH(I$5+$B15&NévMegjelenítése,táblázatAdatok[DÁTUM ÉS IDŐPONT]&táblázatAdatok[KI?],0),3),\"\")","v":""}]
[null,"15:00:00",{"$f":"IFERROR(INDEX(táblázatAdatok[],MATCH(C$5+$B16&NévMegjelenítése,táblázatAdatok[DÁTUM ÉS IDŐPONT]&táblázatAdatok[KI?],0),3),\"\")","v":""},{"$f":"IFERROR(INDEX(táblázatAdatok[],MATCH(D$5+$B16&NévMegjelenítése,táblázatAdatok[DÁTUM ÉS IDŐPONT]&táblázatAdatok[KI?],0),3),\"\")","v":""},{"$f":"IFERROR(INDEX(táblázatAdatok[],MATCH(E$5+$B16&NévMegjelenítése,táblázatAdatok[DÁTUM ÉS IDŐPONT]&táblázatAdatok[KI?],0),3),\"\")","v":""},{"$f":"IFERROR(INDEX(táblázatAdatok[],MATCH(F$5+$B16&NévMegjelenítése,táblázatAdatok[DÁTUM ÉS IDŐPONT]&táblázatAdatok[KI?],0),3),\"\")","v":""},{"$f":"IFERROR(INDEX(táblázatAdatok[],MATCH(G$5+$B16&NévMegjelenítése,táblázatAdatok[DÁTUM ÉS IDŐPONT]&táblázatAdatok[KI?],0),3),\"\")","v":""},{"$f":"IFERROR(INDEX(táblázatAdatok[],MATCH(H$5+$B16&NévMegjelenítése,táblázatAdatok[DÁTUM ÉS IDŐPONT]&táblázatAdatok[KI?],0),3),\"\")","v":""},{"$f":"IFERROR(INDEX(táblázatAdatok[],MATCH(I$5+$B16&NévMegjelenítése,táblázatAdatok[DÁTUM ÉS IDŐPONT]&táblázatAdatok[KI?],0),3),\"\")","v":""}]
[null,"16:00:00",{"$f":"IFERROR(INDEX(táblázatAdatok[],MATCH(C$5+$B17&NévMegjelenítése,táblázatAdatok[DÁTUM ÉS IDŐPONT]&táblázatAdatok[KI?],0),3),\"\")","v":""},{"$f":"IFERROR(INDEX(táblázatAdatok[],MATCH(D$5+$B17&NévMegjelenítése,táblázatAdatok[DÁTUM ÉS IDŐPONT]&táblázatAdatok[KI?],0),3),\"\")","v":"Irány a nyaraló!"},{"$f":"IFERROR(INDEX(táblázatAdatok[],MATCH(E$5+$B17&NévMegjelenítése,táblázatAdatok[DÁTUM ÉS IDŐPONT]&táblázatAdatok[KI?],0),3),\"\")","v":""},{"$f":"IFERROR(INDEX(táblázatAdatok[],MATCH(F$5+$B17&NévMegjelenítése,táblázatAdatok[DÁTUM ÉS IDŐPONT]&táblázatAdatok[KI?],0),3),\"\")","v":""},{"$f":"IFERROR(INDEX(táblázatAdatok[],MATCH(G$5+$B17&NévMegjelenítése,táblázatAdatok[DÁTUM ÉS IDŐPONT]&táblázatAdatok[KI?],0),3),\"\")","v":""},{"$f":"IFERROR(INDEX(táblázatAdatok[],MATCH(H$5+$B17&NévMegjelenítése,táblázatAdatok[DÁTUM ÉS IDŐPONT]&táblázatAdatok[KI?],0),3),\"\")","v":""},{"$f":"IFERROR(INDEX(táblázatAdatok[],MATCH(I$5+$B17&NévMegjelenítése,táblázatAdatok[DÁTUM ÉS IDŐPONT]&táblázatAdatok[KI?],0),3),\"\")","v":""}]
[null,"17:00:00",{"$f":"IFERROR(INDEX(táblázatAdatok[],MATCH(C$5+$B18&NévMegjelenítése,táblázatAdatok[DÁTUM ÉS IDŐPONT]&táblázatAdatok[KI?],0),3),\"\")","v":""},{"$f":"IFERROR(INDEX(táblázatAdatok[],MATCH(D$5+$B18&NévMegjelenítése,táblázatAdatok[DÁTUM ÉS IDŐPONT]&táblázatAdatok[KI?],0),3),\"\")","v":""},{"$f":"IFERROR(INDEX(táblázatAdatok[],MATCH(E$5+$B18&NévMegjelenítése,táblázatAdatok[DÁTUM ÉS IDŐPONT]&táblázatAdatok[KI?],0),3),\"\")","v":""},{"$f":"IFERROR(INDEX(táblázatAdatok[],MATCH(F$5+$B18&NévMegjelenítése,táblázatAdatok[DÁTUM ÉS IDŐPONT]&táblázatAdatok[KI?],0),3),\"\")","v":""},{"$f":"IFERROR(INDEX(táblázatAdatok[],MATCH(G$5+$B18&NévMegjelenítése,táblázatAdatok[DÁTUM ÉS IDŐPONT]&táblázatAdatok[KI?],0),3),\"\")","v":""},{"$f":"IFERROR(INDEX(táblázatAdatok[],MATCH(H$5+$B18&NévMegjelenítése,táblázatAdatok[DÁTUM ÉS IDŐPONT]&táblázatAdatok[KI?],0),3),\"\")","v":""},{"$f":"IFERROR(INDEX(táblázatAdatok[],MATCH(I$5+$B18&NévMegjelenítése,táblázatAdatok[DÁTUM ÉS IDŐPONT]&táblázatAdatok[KI?],0),3),\"\")","v":"Hazaindulás"}]
[null,"18:00:00",{"$f":"IFERROR(INDEX(táblázatAdatok[],MATCH(C$5+$B19&NévMegjelenítése,táblázatAdatok[DÁTUM ÉS IDŐPONT]&táblázatAdatok[KI?],0),3),\"\")","v":"Gyógyszer bevétele"},{"$f":"IFERROR(INDEX(táblázatAdatok[],MATCH(D$5+$B19&NévMegjelenítése,táblázatAdatok[DÁTUM ÉS IDŐPONT]&táblázatAdatok[KI?],0),3),\"\")","v":""},{"$f":"IFERROR(INDEX(táblázatAdatok[],MATCH(E$5+$B19&NévMegjelenítése,táblázatAdatok[DÁTUM ÉS IDŐPONT]&táblázatAdatok[KI?],0),3),\"\")","v":""},{"$f":"IFERROR(INDEX(táblázatAdatok[],MATCH(F$5+$B19&NévMegjelenítése,táblázatAdatok[DÁTUM ÉS IDŐPONT]&táblázatAdatok[KI?],0),3),\"\")","v":""},{"$f":"IFERROR(INDEX(táblázatAdatok[],MATCH(G$5+$B19&NévMegjelenítése,táblázatAdatok[DÁTUM ÉS IDŐPONT]&táblázatAdatok[KI?],0),3),\"\")","v":""},{"$f":"IFERROR(INDEX(táblázatAdatok[],MATCH(H$5+$B19&NévMegjelenítése,táblázatAdatok[DÁTUM ÉS IDŐPONT]&táblázatAdatok[KI?],0),3),\"\")","v":""},{"$f":"IFERROR(INDEX(táblázatAdatok[],MATCH(I$5+$B19&NévMegjelenítése,táblázatAdatok[DÁTUM ÉS IDŐPONT]&táblázatAdatok[KI?],0),3),\"\")","v":""}]
[null,"19:00:00",{"$f":"IFERROR(INDEX(táblázatAdatok[],MATCH(C$5+$B20&NévMegjelenítése,táblázatAdatok[DÁTUM ÉS IDŐPONT]&táblázatAdatok[KI?],0),3),\"\")","v":""},{"$f":"IFERROR(INDEX(táblázatAdatok[],MATCH(D$5+$B20&NévMegjelenítése,táblázatAdatok[DÁTUM ÉS IDŐPONT]&táblázatAdatok[KI?],0),3),\"\")","v":""},{"$f":"IFERROR(INDEX(táblázatAdatok[],MATCH(E$5+$B20&NévMegjelenítése,táblázatAdatok[DÁTUM ÉS IDŐPONT]&táblázatAdatok[KI?],0),3),\"\")","v":""},{"$f":"IFERROR(INDEX(táblázatAdatok[],MATCH(F$5+$B20&NévMegjelenítése,táblázatAdatok[DÁTUM ÉS IDŐPONT]&táblázatAdatok[KI?],0),3),\"\")","v":""},{"$f":"IFERROR(INDEX(táblázatAdatok[],MATCH(G$5+$B20&NévMegjelenítése,táblázatAdatok[DÁTUM ÉS IDŐPONT]&táblázatAdatok[KI?],0),3),\"\")","v":""},{"$f":"IFERROR(INDEX(táblázatAdatok[],MATCH(H$5+$B20&NévMegjelenítése,táblázatAdatok[DÁTUM ÉS IDŐPONT]&táblázatAdatok[KI?],0),3),\"\")","v":""},{"$f":"IFERROR(INDEX(táblázatAdatok[],MATCH(I$5+$B20&NévMegjelenítése,táblázatAdatok[DÁTUM ÉS IDŐPONT]&táblázatAdatok[KI?],0),3),\"\")","v":""}]
[null,"20:00:00",{"$f":"IFERROR(INDEX(táblázatAdatok[],MATCH(C$5+$B21&NévMegjelenítése,táblázatAdatok[DÁTUM ÉS IDŐPONT]&táblázatAdatok[KI?],0),3),\"\")","v":"Filmnézés a családdal"},{"$f":"IFERROR(INDEX(táblázatAdatok[],MATCH(D$5+$B21&NévMegjelenítése,táblázatAdatok[DÁTUM ÉS IDŐPONT]&táblázatAdatok[KI?],0),3),\"\")","v":""},{"$f":"IFERROR(INDEX(táblázatAdatok[],MATCH(E$5+$B21&NévMegjelenítése,táblázatAdatok[DÁTUM ÉS IDŐPONT]&táblázatAdatok[KI?],0),3),\"\")","v":""},{"$f":"IFERROR(INDEX(táblázatAdatok[],MATCH(F$5+$B21&NévMegjelenítése,táblázatAdatok[DÁTUM ÉS IDŐPONT]&táblázatAdatok[KI?],0),3),\"\")","v":"Tűzijáték"},{"$f":"IFERROR(INDEX(táblázatAdatok[],MATCH(G$5+$B21&NévMegjelenítése,táblázatAdatok[DÁTUM ÉS IDŐPONT]&táblázatAdatok[KI?],0),3),\"\")","v":""},{"$f":"IFERROR(INDEX(táblázatAdatok[],MATCH(H$5+$B21&NévMegjelenítése,táblázatAdatok[DÁTUM ÉS IDŐPONT]&táblázatAdatok[KI?],0),3),\"\")","v":""},{"$f":"IFERROR(INDEX(táblázatAdatok[],MATCH(I$5+$B21&NévMegjelenítése,táblázatAdatok[DÁTUM ÉS IDŐPONT]&táblázatAdatok[KI?],0),3),\"\")","v":""}]
[null,"21:00:00",{"$f":"IFERROR(INDEX(táblázatAdatok[],MATCH(C$5+$B22&NévMegjelenítése,táblázatAdatok[DÁTUM ÉS IDŐPONT]&táblázatAdatok[KI?],0),3),\"\")","v":""},{"$f":"IFERROR(INDEX(táblázatAdatok[],MATCH(D$5+$B22&NévMegjelenítése,táblázatAdatok[DÁTUM ÉS IDŐPONT]&táblázatAdatok[KI?],0),3),\"\")","v":""},{"$f":"IFERROR(INDEX(táblázatAdatok[],MATCH(E$5+$B22&NévMegjelenítése,táblázatAdatok[DÁTUM ÉS IDŐPONT]&táblázatAdatok[KI?],0),3),\"\")","v":""},{"$f":"IFERROR(INDEX(táblázatAdatok[],MATCH(F$5+$B22&NévMegjelenítése,táblázatAdatok[DÁTUM ÉS IDŐPONT]&táblázatAdatok[KI?],0),3),\"\")","v":""},{"$f":"IFERROR(INDEX(táblázatAdatok[],MATCH(G$5+$B22&NévMegjelenítése,táblázatAdatok[DÁTUM ÉS IDŐPONT]&táblázatAdatok[KI?],0),3),\"\")","v":""},{"$f":"IFERROR(INDEX(táblázatAdatok[],MATCH(H$5+$B22&NévMegjelenítése,táblázatAdatok[DÁTUM ÉS IDŐPONT]&táblázatAdatok[KI?],0),3),\"\")","v":""},{"$f":"IFERROR(INDEX(táblázatAdatok[],MATCH(I$5+$B22&NévMegjelenítése,táblázatAdatok[DÁTUM ÉS IDŐPONT]&táblázatAdatok[KI?],0),3),\"\")","v":""}]
[null,"22:00:00",{"$f":"IFERROR(INDEX(táblázatAdatok[],MATCH(C$5+$B23&NévMegjelenítése,táblázatAdatok[DÁTUM ÉS IDŐPONT]&táblázatAdatok[KI?],0),3),\"\")","v":""},{"$f":"IFERROR(INDEX(táblázatAdatok[],MATCH(D$5+$B23&NévMegjelenítése,táblázatAdatok[DÁTUM ÉS IDŐPONT]&táblázatAdatok[KI?],0),3),\"\")","v":""},{"$f":"IFERROR(INDEX(táblázatAdatok[],MATCH(E$5+$B23&NévMegjelenítése,táblázatAdatok[DÁTUM ÉS IDŐPONT]&táblázatAdatok[KI?],0),3),\"\")","v":""},{"$f":"IFERROR(INDEX(táblázatAdatok[],MATCH(F$5+$B23&NévMegjelenítése,táblázatAdatok[DÁTUM ÉS IDŐPONT]&táblázatAdatok[KI?],0),3),\"\")","v":""},{"$f":"IFERROR(INDEX(táblázatAdatok[],MATCH(G$5+$B23&NévMegjelenítése,táblázatAdatok[DÁTUM ÉS IDŐPONT]&táblázatAdatok[KI?],0),3),\"\")","v":""},{"$f":"IFERROR(INDEX(táblázatAdatok[],MATCH(H$5+$B23&NévMegjelenítése,táblázatAdatok[DÁTUM ÉS IDŐPONT]&táblázatAdatok[KI?],0),3),\"\")","v":""},{"$f":"IFERROR(INDEX(táblázatAdatok[],MATCH(I$5+$B23&NévMegjelenítése,táblázatAdatok[DÁTUM ÉS IDŐPONT]&táblázatAdatok[KI?],0),3),\"\")","v":""}]

{"sheet":"Adatbevitel","index":1,"n_rows":14,"n_cols":4,"rows_kept":14}
[null,"ADATBEVITEL"]
[]
[null,"DÁTUM ÉS IDŐPONT","KI?","TEVÉKENYSÉG"]
[null,"2012-07-02T08:00:00","Anna","Időpont az orvosnál"]
[null,"2012-07-02T18:00:00","Miklós","Gyógyszer bevétele"]
[null,"2012-07-02T18:30:00","Miklós","Vacsora Barbarával"]
[null,"2012-07-02T20:00:00","Miklós","Filmnézés a családdal"]
[null,"2012-07-03T16:00:00","Miklós","Irány a nyaraló!"]
[null,"2012-07-04T10:00:00","Miklós","Felvonulás a belvárosban"]
[null,"2012-07-05T20:00:00","Miklós","Tűzijáték"]
[null,"2012-07-06T11:00:00","Miklós","Családi szalonnasütés"]
[null,"2012-07-07","Miklós","Közösségi piknik"]
[null,"2012-07-08T17:00:00","Miklós","Hazaindulás"]
[null,"2012-07-02T10:00:00","Anna","Zongoralecke"]

{"sheet":"Név keresése","index":2,"n_rows":132,"n_cols":2,"rows_kept":132,"hidden":true,"merged":[[0,0,0,1]]}
["Ez a munkalap tölti fel nevekkel az Ütemterv munkalap H3 cellájában a legördülő menüt. A munkalap bármilyen módosítása hibát eredményezhet."]
["EGYEDI NÉV","SOR SZÁMA"]
[{"$f":"IFERROR(INDEX(KiMező,MATCH(0,COUNTIF($A$2:A2,KiMező),0)),\"\")","v":"Anna"},{"$f":"IF(A3=\"\",\"\",ROW())","v":3}]
[{"$f":"IFERROR(INDEX(KiMező,MATCH(0,COUNTIF($A$2:A3,KiMező),0)),\"\")","v":"Miklós"},{"$f":"IF(A4=\"\",\"\",ROW())","v":4}]
[{"$f":"IFERROR(INDEX(KiMező,MATCH(0,COUNTIF($A$2:A4,KiMező),0)),\"\")","v":""},""]
[{"$f":"IFERROR(INDEX(KiMező,MATCH(0,COUNTIF($A$2:A5,KiMező),0)),\"\")","v":""},""]
[{"$f":"IFERROR(INDEX(KiMező,MATCH(0,COUNTIF($A$2:A6,KiMező),0)),\"\")","v":""},""]
[{"$f":"IFERROR(INDEX(KiMező,MATCH(0,COUNTIF($A$2:A7,KiMező),0)),\"\")","v":""},""]
[{"$f":"IFERROR(INDEX(KiMező,MATCH(0,COUNTIF($A$2:A8,KiMező),0)),\"\")","v":""},""]
[{"$f":"IFERROR(INDEX(KiMező,MATCH(0,COUNTIF($A$2:A9,KiMező),0)),\"\")","v":""},""]
[{"$f":"IFERROR(INDEX(KiMező,MATCH(0,COUNTIF($A$2:A10,KiMező),0)),\"\")","v":""},""]
[{"$f":"IFERROR(INDEX(KiMező,MATCH(0,COUNTIF($A$2:A11,KiMező),0)),\"\")","v":""},""]
[{"$f":"IFERROR(INDEX(KiMező,MATCH(0,COUNTIF($A$2:A12,KiMező),0)),\"\")","v":""},""]
[{"$f":"IFERROR(INDEX(KiMező,MATCH(0,COUNTIF($A$2:A13,KiMező),0)),\"\")","v":""},""]
[{"$f":"IFERROR(INDEX(KiMező,MATCH(0,COUNTIF($A$2:A14,KiMező),0)),\"\")","v":""},""]
[{"$f":"IFERROR(INDEX(KiMező,MATCH(0,COUNTIF($A$2:A15,KiMező),0)),\"\")","v":""},""]
[{"$f":"IFERROR(INDEX(KiMező,MATCH(0,COUNTIF($A$2:A16,KiMező),0)),\"\")","v":""},""]
[{"$f":"IFERROR(INDEX(KiMező,MATCH(0,COUNTIF($A$2:A17,KiMező),0)),\"\")","v":""},""]
[{"$f":"IFERROR(INDEX(KiMező,MATCH(0,COUNTIF($A$2:A18,KiMező),0)),\"\")","v":""},""]
[{"$f":"IFERROR(INDEX(KiMező,MATCH(0,COUNTIF($A$2:A19,KiMező),0)),\"\")","v":""},""]
[{"$f":"IFERROR(INDEX(KiMező,MATCH(0,COUNTIF($A$2:A20,KiMező),0)),\"\")","v":""},""]
[{"$f":"IFERROR(INDEX(KiMező,MATCH(0,COUNTIF($A$2:A21,KiMező),0)),\"\")","v":""},""]
[{"$f":"IFERROR(INDEX(KiMező,MATCH(0,COUNTIF($A$2:A22,KiMező),0)),\"\")","v":""},""]
[{"$f":"IFERROR(INDEX(KiMező,MATCH(0,COUNTIF($A$2:A23,KiMező),0)),\"\")","v":""},""]
[{"$f":"IFERROR(INDEX(KiMező,MATCH(0,COUNTIF($A$2:A24,KiMező),0)),\"\")","v":""},""]
[{"$f":"IFERROR(INDEX(KiMező,MATCH(0,COUNTIF($A$2:A25,KiMező),0)),\"\")","v":""},""]
[{"$f":"IFERROR(INDEX(KiMező,MATCH(0,COUNTIF($A$2:A26,KiMező),0)),\"\")","v":""},""]
[{"$f":"IFERROR(INDEX(KiMező,MATCH(0,COUNTIF($A$2:A27,KiMező),0)),\"\")","v":""},""]
[{"$f":"IFERROR(INDEX(KiMező,MATCH(0,COUNTIF($A$2:A28,KiMező),0)),\"\")","v":""},""]
[{"$f":"IFERROR(INDEX(KiMező,MATCH(0,COUNTIF($A$2:A29,KiMező),0)),\"\")","v":""},""]
[{"$f":"IFERROR(INDEX(KiMező,MATCH(0,COUNTIF($A$2:A30,KiMező),0)),\"\")","v":""},""]
[{"$f":"IFERROR(INDEX(KiMező,MATCH(0,COUNTIF($A$2:A31,KiMező),0)),\"\")","v":""},""]
[{"$f":"IFERROR(INDEX(KiMező,MATCH(0,COUNTIF($A$2:A32,KiMező),0)),\"\")","v":""},""]
[{"$f":"IFERROR(INDEX(KiMező,MATCH(0,COUNTIF($A$2:A33,KiMező),0)),\"\")","v":""},""]
[{"$f":"IFERROR(INDEX(KiMező,MATCH(0,COUNTIF($A$2:A34,KiMező),0)),\"\")","v":""},""]
[{"$f":"IFERROR(INDEX(KiMező,MATCH(0,COUNTIF($A$2:A35,KiMező),0)),\"\")","v":""},""]
[{"$f":"IFERROR(INDEX(KiMező,MATCH(0,COUNTIF($A$2:A36,KiMező),0)),\"\")","v":""},""]
[{"$f":"IFERROR(INDEX(KiMező,MATCH(0,COUNTIF($A$2:A37,KiMező),0)),\"\")","v":""},""]
[{"$f":"IFERROR(INDEX(KiMező,MATCH(0,COUNTIF($A$2:A38,KiMező),0)),\"\")","v":""},""]
[{"$f":"IFERROR(INDEX(KiMező,MATCH(0,COUNTIF($A$2:A39,KiMező),0)),\"\")","v":""},""]
[{"$f":"IFERROR(INDEX(KiMező,MATCH(0,COUNTIF($A$2:A40,KiMező),0)),\"\")","v":""},""]
[{"$f":"IFERROR(INDEX(KiMező,MATCH(0,COUNTIF($A$2:A41,KiMező),0)),\"\")","v":""},""]
[{"$f":"IFERROR(INDEX(KiMező,MATCH(0,COUNTIF($A$2:A42,KiMező),0)),\"\")","v":""},""]
[{"$f":"IFERROR(INDEX(KiMező,MATCH(0,COUNTIF($A$2:A43,KiMező),0)),\"\")","v":""},""]
[{"$f":"IFERROR(INDEX(KiMező,MATCH(0,COUNTIF($A$2:A44,KiMező),0)),\"\")","v":""},""]
[{"$f":"IFERROR(INDEX(KiMező,MATCH(0,COUNTIF($A$2:A45,KiMező),0)),\"\")","v":""},""]
[{"$f":"IFERROR(INDEX(KiMező,MATCH(0,COUNTIF($A$2:A46,KiMező),0)),\"\")","v":""},""]
[{"$f":"IFERROR(INDEX(KiMező,MATCH(0,COUNTIF($A$2:A47,KiMező),0)),\"\")","v":""},""]
[{"$f":"IFERROR(INDEX(KiMező,MATCH(0,COUNTIF($A$2:A48,KiMező),0)),\"\")","v":""},""]
[{"$f":"IFERROR(INDEX(KiMező,MATCH(0,COUNTIF($A$2:A49,KiMező),0)),\"\")","v":""},""]
[{"$f":"IFERROR(INDEX(KiMező,MATCH(0,COUNTIF($A$2:A50,KiMező),0)),\"\")","v":""},""]
[{"$f":"IFERROR(INDEX(KiMező,MATCH(0,COUNTIF($A$2:A51,KiMező),0)),\"\")","v":""},""]
[{"$f":"IFERROR(INDEX(KiMező,MATCH(0,COUNTIF($A$2:A52,KiMező),0)),\"\")","v":""},""]
[{"$f":"IFERROR(INDEX(KiMező,MATCH(0,COUNTIF($A$2:A53,KiMező),0)),\"\")","v":""},""]
[{"$f":"IFERROR(INDEX(KiMező,MATCH(0,COUNTIF($A$2:A54,KiMező),0)),\"\")","v":""},""]
[{"$f":"IFERROR(INDEX(KiMező,MATCH(0,COUNTIF($A$2:A55,KiMező),0)),\"\")","v":""},""]
[{"$f":"IFERROR(INDEX(KiMező,MATCH(0,COUNTIF($A$2:A56,KiMező),0)),\"\")","v":""},""]
[{"$f":"IFERROR(INDEX(KiMező,MATCH(0,COUNTIF($A$2:A57,KiMező),0)),\"\")","v":""},""]
[{"$f":"IFERROR(INDEX(KiMező,MATCH(0,COUNTIF($A$2:A58,KiMező),0)),\"\")","v":""},""]
[{"$f":"IFERROR(INDEX(KiMező,MATCH(0,COUNTIF($A$2:A59,KiMező),0)),\"\")","v":""},""]
[{"$f":"IFERROR(INDEX(KiMező,MATCH(0,COUNTIF($A$2:A60,KiMező),0)),\"\")","v":""},""]
[{"$f":"IFERROR(INDEX(KiMező,MATCH(0,COUNTIF($A$2:A61,KiMező),0)),\"\")","v":""},""]
[{"$f":"IFERROR(INDEX(KiMező,MATCH(0,COUNTIF($A$2:A62,KiMező),0)),\"\")","v":""},""]
[{"$f":"IFERROR(INDEX(KiMező,MATCH(0,COUNTIF($A$2:A63,KiMező),0)),\"\")","v":""},""]
[{"$f":"IFERROR(INDEX(KiMező,MATCH(0,COUNTIF($A$2:A64,KiMező),0)),\"\")","v":""},""]
[{"$f":"IFERROR(INDEX(KiMező,MATCH(0,COUNTIF($A$2:A65,KiMező),0)),\"\")","v":""},""]
[{"$f":"IFERROR(INDEX(KiMező,MATCH(0,COUNTIF($A$2:A66,KiMező),0)),\"\")","v":""},""]
[{"$f":"IFERROR(INDEX(KiMező,MATCH(0,COUNTIF($A$2:A67,KiMező),0)),\"\")","v":""},{"$f":"IF(A68=\"\",\"\",ROW())","v":""}]
[{"$f":"IFERROR(INDEX(KiMező,MATCH(0,COUNTIF($A$2:A68,KiMező),0)),\"\")","v":""},""]
[{"$f":"IFERROR(INDEX(KiMező,MATCH(0,COUNTIF($A$2:A69,KiMező),0)),\"\")","v":""},""]
[{"$f":"IFERROR(INDEX(KiMező,MATCH(0,COUNTIF($A$2:A70,KiMező),0)),\"\")","v":""},""]
[{"$f":"IFERROR(INDEX(KiMező,MATCH(0,COUNTIF($A$2:A71,KiMező),0)),\"\")","v":""},""]
[{"$f":"IFERROR(INDEX(KiMező,MATCH(0,COUNTIF($A$2:A72,KiMező),0)),\"\")","v":""},""]
[{"$f":"IFERROR(INDEX(KiMező,MATCH(0,COUNTIF($A$2:A73,KiMező),0)),\"\")","v":""},""]
[{"$f":"IFERROR(INDEX(KiMező,MATCH(0,COUNTIF($A$2:A74,KiMező),0)),\"\")","v":""},""]
[{"$f":"IFERROR(INDEX(KiMező,MATCH(0,COUNTIF($A$2:A75,KiMező),0)),\"\")","v":""},""]
[{"$f":"IFERROR(INDEX(KiMező,MATCH(0,COUNTIF($A$2:A76,KiMező),0)),\"\")","v":""},""]
[{"$f":"IFERROR(INDEX(KiMező,MATCH(0,COUNTIF($A$2:A77,KiMező),0)),\"\")","v":""},""]
[{"$f":"IFERROR(INDEX(KiMező,MATCH(0,COUNTIF($A$2:A78,KiMező),0)),\"\")","v":""},""]
[{"$f":"IFERROR(INDEX(KiMező,MATCH(0,COUNTIF($A$2:A79,KiMező),0)),\"\")","v":""},""]
[{"$f":"IFERROR(INDEX(KiMező,MATCH(0,COUNTIF($A$2:A80,KiMező),0)),\"\")","v":""},""]
[{"$f":"IFERROR(INDEX(KiMező,MATCH(0,COUNTIF($A$2:A81,KiMező),0)),\"\")","v":""},""]
[{"$f":"IFERROR(INDEX(KiMező,MATCH(0,COUNTIF($A$2:A82,KiMező),0)),\"\")","v":""},""]
[{"$f":"IFERROR(INDEX(KiMező,MATCH(0,COUNTIF($A$2:A83,KiMező),0)),\"\")","v":""},""]
[{"$f":"IFERROR(INDEX(KiMező,MATCH(0,COUNTIF($A$2:A84,KiMező),0)),\"\")","v":""},""]
[{"$f":"IFERROR(INDEX(KiMező,MATCH(0,COUNTIF($A$2:A85,KiMező),0)),\"\")","v":""},""]
[{"$f":"IFERROR(INDEX(KiMező,MATCH(0,COUNTIF($A$2:A86,KiMező),0)),\"\")","v":""},""]
[{"$f":"IFERROR(INDEX(KiMező,MATCH(0,COUNTIF($A$2:A87,KiMező),0)),\"\")","v":""},""]
[{"$f":"IFERROR(INDEX(KiMező,MATCH(0,COUNTIF($A$2:A88,KiMező),0)),\"\")","v":""},""]
[{"$f":"IFERROR(INDEX(KiMező,MATCH(0,COUNTIF($A$2:A89,KiMező),0)),\"\")","v":""},""]
[{"$f":"IFERROR(INDEX(KiMező,MATCH(0,COUNTIF($A$2:A90,KiMező),0)),\"\")","v":""},""]
[{"$f":"IFERROR(INDEX(KiMező,MATCH(0,COUNTIF($A$2:A91,KiMező),0)),\"\")","v":""},""]
[{"$f":"IFERROR(INDEX(KiMező,MATCH(0,COUNTIF($A$2:A92,KiMező),0)),\"\")","v":""},""]
[{"$f":"IFERROR(INDEX(KiMező,MATCH(0,COUNTIF($A$2:A93,KiMező),0)),\"\")","v":""},""]
[{"$f":"IFERROR(INDEX(KiMező,MATCH(0,COUNTIF($A$2:A94,KiMező),0)),\"\")","v":""},""]
[{"$f":"IFERROR(INDEX(KiMező,MATCH(0,COUNTIF($A$2:A95,KiMező),0)),\"\")","v":""},""]
[{"$f":"IFERROR(INDEX(KiMező,MATCH(0,COUNTIF($A$2:A96,KiMező),0)),\"\")","v":""},""]
[{"$f":"IFERROR(INDEX(KiMező,MATCH(0,COUNTIF($A$2:A97,KiMező),0)),\"\")","v":""},""]
[{"$f":"IFERROR(INDEX(KiMező,MATCH(0,COUNTIF($A$2:A98,KiMező),0)),\"\")","v":""},""]
[{"$f":"IFERROR(INDEX(KiMező,MATCH(0,COUNTIF($A$2:A99,KiMező),0)),\"\")","v":""},""]
[{"$f":"IFERROR(INDEX(KiMező,MATCH(0,COUNTIF($A$2:A100,KiMező),0)),\"\")","v":""},""]
[{"$f":"IFERROR(INDEX(KiMező,MATCH(0,COUNTIF($A$2:A101,KiMező),0)),\"\")","v":""},""]
[{"$f":"IFERROR(INDEX(KiMező,MATCH(0,COUNTIF($A$2:A102,KiMező),0)),\"\")","v":""},""]
[{"$f":"IFERROR(INDEX(KiMező,MATCH(0,COUNTIF($A$2:A103,KiMező),0)),\"\")","v":""},""]
[{"$f":"IFERROR(INDEX(KiMező,MATCH(0,COUNTIF($A$2:A104,KiMező),0)),\"\")","v":""},""]
[{"$f":"IFERROR(INDEX(KiMező,MATCH(0,COUNTIF($A$2:A105,KiMező),0)),\"\")","v":""},""]
[{"$f":"IFERROR(INDEX(KiMező,MATCH(0,COUNTIF($A$2:A106,KiMező),0)),\"\")","v":""},""]
[{"$f":"IFERROR(INDEX(KiMező,MATCH(0,COUNTIF($A$2:A107,KiMező),0)),\"\")","v":""},""]
[{"$f":"IFERROR(INDEX(KiMező,MATCH(0,COUNTIF($A$2:A108,KiMező),0)),\"\")","v":""},""]
[{"$f":"IFERROR(INDEX(KiMező,MATCH(0,COUNTIF($A$2:A109,KiMező),0)),\"\")","v":""},""]
[{"$f":"IFERROR(INDEX(KiMező,MATCH(0,COUNTIF($A$2:A110,KiMező),0)),\"\")","v":""},""]
[{"$f":"IFERROR(INDEX(KiMező,MATCH(0,COUNTIF($A$2:A111,KiMező),0)),\"\")","v":""},""]
[{"$f":"IFERROR(INDEX(KiMező,MATCH(0,COUNTIF($A$2:A112,KiMező),0)),\"\")","v":""},""]
[{"$f":"IFERROR(INDEX(KiMező,MATCH(0,COUNTIF($A$2:A113,KiMező),0)),\"\")","v":""},""]
[{"$f":"IFERROR(INDEX(KiMező,MATCH(0,COUNTIF($A$2:A114,KiMező),0)),\"\")","v":""},""]
[{"$f":"IFERROR(INDEX(KiMező,MATCH(0,COUNTIF($A$2:A115,KiMező),0)),\"\")","v":""},""]
[{"$f":"IFERROR(INDEX(KiMező,MATCH(0,COUNTIF($A$2:A116,KiMező),0)),\"\")","v":""},""]
[{"$f":"IFERROR(INDEX(KiMező,MATCH(0,COUNTIF($A$2:A117,KiMező),0)),\"\")","v":""},""]
[{"$f":"IFERROR(INDEX(KiMező,MATCH(0,COUNTIF($A$2:A118,KiMező),0)),\"\")","v":""},""]
[{"$f":"IFERROR(INDEX(KiMező,MATCH(0,COUNTIF($A$2:A119,KiMező),0)),\"\")","v":""},""]
[{"$f":"IFERROR(INDEX(KiMező,MATCH(0,COUNTIF($A$2:A120,KiMező),0)),\"\")","v":""},""]
[{"$f":"IFERROR(INDEX(KiMező,MATCH(0,COUNTIF($A$2:A121,KiMező),0)),\"\")","v":""},""]
[{"$f":"IFERROR(INDEX(KiMező,MATCH(0,COUNTIF($A$2:A122,KiMező),0)),\"\")","v":""},""]
[{"$f":"IFERROR(INDEX(KiMező,MATCH(0,COUNTIF($A$2:A123,KiMező),0)),\"\")","v":""},""]
[{"$f":"IFERROR(INDEX(KiMező,MATCH(0,COUNTIF($A$2:A124,KiMező),0)),\"\")","v":""},""]
[{"$f":"IFERROR(INDEX(KiMező,MATCH(0,COUNTIF($A$2:A125,KiMező),0)),\"\")","v":""},""]
[{"$f":"IFERROR(INDEX(KiMező,MATCH(0,COUNTIF($A$2:A126,KiMező),0)),\"\")","v":""},""]
[{"$f":"IFERROR(INDEX(KiMező,MATCH(0,COUNTIF($A$2:A127,KiMező),0)),\"\")","v":""},""]
[{"$f":"IFERROR(INDEX(KiMező,MATCH(0,COUNTIF($A$2:A128,KiMező),0)),\"\")","v":""},""]
[{"$f":"IFERROR(INDEX(KiMező,MATCH(0,COUNTIF($A$2:A129,KiMező),0)),\"\")","v":""},""]
[{"$f":"IFERROR(INDEX(KiMező,MATCH(0,COUNTIF($A$2:A130,KiMező),0)),\"\")","v":""},""]
[{"$f":"IFERROR(INDEX(KiMező,MATCH(0,COUNTIF($A$2:A131,KiMező),0)),\"\")","v":""},{"$f":"IF(A132=\"\",\"\",ROW())","v":""}]